fUST/lending_fUST_20250303
["ID","MTS","AMOUNT","RATE_DAILY","PERIOD"]
[355184984,1740960634919,-500.0,0.00023834,2]
[355184985,1740960634932,-500.0,0.00023834,2]
[355184986,1740960634942,-502.5,0.00023834,2]
[355184987,1740960634952,-500.0,0.00023834,2]
[355184988,1740960634962,-375.83901598,0.00023834,2]
[355184989,1740960634971,-582.73,0.00023834,2]
[355184990,1740960634981,-155.92,0.00023834,2]
[355184991,1740960634991,-463.38,0.00023834,2]
[355184992,1740960635001,-500.0,0.00023834,2]
[355184993,1740960635011,-500.0,0.00023834,2]
[355184994,1740960635021,-558.3550699,0.00023834,2]
[355184995,1740960635031,-500.0,0.00023834,2]
[355184996,1740960635040,-311.11816308,0.00023834,2]
[355184997,1740960635053,-542.21,0.00023834,2]
[355184998,1740960635063,-631.4,0.00023834,2]
[355184999,1740960635074,-178.46,0.00023834,2]
[355185000,1740960635083,-375.88,0.00023834,2]
[355185001,1740960635093,-500.0,0.00023834,2]
[355185002,1740960635103,-500.0,0.00023834,2]
[355185003,1740960635112,-500.0,0.00023834,2]
[355185004,1740960635122,-233.72,0.00023834,2]
[355185005,1740960635131,-311.53,0.00023834,2]
[355185006,1740960635142,-500.0,0.00023834,2]
[355185007,1740960635151,-565.65,0.00023834,2]
[355185008,1740960635161,-335.89,0.00023834,2]
[355185009,1740960635171,-500.0,0.00023834,2]
[355185010,1740960635183,-500.0,0.00023834,2]
[355185011,1740960635193,-500.0,0.00023834,2]
[355185012,1740960635203,-171.61498965,0.00024107,2]
[355185013,1740960635213,-179.60343272,0.00024107,2]
[355185014,1740960635223,-460.94,0.00024108,2]
[355185015,1740960635232,-285.35,0.00024108,2]
[355185016,1740960635242,-522.1,0.00024108,2]
[355185017,1740960635251,-500.0,0.00024108,2]
[355185018,1740960635262,-500.0,0.00024108,2]
[355185019,1740960635271,-500.0,0.00024108,2]
[355185020,1740960635281,-259.6,0.00024108,2]
[355185021,1740960635291,-500.0,0.00024108,2]
[355185022,1740960635301,-188.89,0.00024108,2]
[355185023,1740960635311,-500.0,0.00024108,2]
[355185024,1740960635321,-500.0,0.00024108,2]
[355185025,1740960635331,-500.0,0.00024108,2]
[355185026,1740960635340,-500.0,0.00024108,2]
[355185027,1740960635349,-500.0,0.00024108,2]
[355185028,1740960635360,-346.37,0.00024108,2]
[355185029,1740960635370,-500.0,0.00024108,2]
[355185030,1740960635380,-601.03,0.00024108,2]
[355185031,1740960635389,-500.0,0.00024108,2]
[355185032,1740960635399,-292.8,0.00024108,2]
[355185033,1740960635408,-500.0,0.00024108,2]
[355185034,1740960635419,-542.21,0.00024108,2]
[355185035,1740960635431,-189.34,0.00024108,2]
[355185036,1740960635440,-470.76,0.00024108,2]
[355185037,1740960635450,-174.23,0.00024108,2]
[355185038,1740960635459,-285.04,0.00024108,2]
[355185039,1740960635468,-212.0,0.00024108,2]
[355185040,1740960635478,-420.0,0.00024108,2]
[355185041,1740960635489,-500.0,0.00024108,2]
[355185042,1740960635499,-500.0,0.00024382,2]
[355185043,1740960635510,-500.0,0.00024382,2]
[355185044,1740960635520,-500.0,0.00024382,2]
[355185045,1740960635530,-500.0,0.00024382,2]
[355185046,1740960635540,-500.0,0.00024382,2]
[355185047,1740960635549,-599.61,0.00024382,2]
[355185048,1740960635559,-500.0,0.00024382,2]
[355185049,1740960635568,-500.0,0.00024382,2]
[355185050,1740960635579,-530.19,0.00024382,2]
[355185051,1740960635590,-500.0,0.00024382,2]
[355185052,1740960635600,-316.52,0.00024382,2]
[355185053,1740960635612,-500.0,0.00024382,2]
[355185054,1740960635622,-542.21,0.00024382,2]
[355185055,1740960635633,-500.0,0.00024382,2]
[355185056,1740960635643,-500.0,0.00024428,2]
[355185057,1740960635653,-300.0,0.000246,11]
[355185058,1740960635662,-500.0,0.00024656,2]
[355185059,1740960635675,-500.0,0.00024656,2]
[355185060,1740960635687,-500.0,0.00024656,2]
[355185061,1740960635696,-174.48,0.00024656,2]
[355185062,1740960635706,-302.57,0.00024656,2]
[355185063,1740960635716,-477.89,0.00024656,2]
[355185064,1740960635726,-500.0,0.00024656,2]
[355185065,1740960635736,-168.29,0.00024656,2]
[355185066,1740960635746,-500.0,0.00024656,2]
[355185067,1740960635756,-542.21,0.00024656,2]
[355185068,1740960635765,-500.0,0.00024656,2]
[355185069,1740960635775,-3236.25430632,0.000249,4]
[355185070,1740960635785,-500.0,0.0002493,2]
[355185071,1740960635803,-537.13,0.0002493,2]
[355185072,1740960635813,-500.0,0.0002493,2]
[355185073,1740960635823,-500.0,0.0002493,2]
[355185074,1740960635832,-500.0,0.0002493,2]
[355185075,1740960635843,-542.21,0.0002493,2]
[355185076,1740960635853,-500.0,0.0002493,2]
[355185077,1740960635863,-316.22,0.00025,2]
[355185078,1740960635873,-329.87,0.00025204,2]
[355185079,1740960635883,-471.85,0.00025204,2]
[355185080,1740960635892,-500.0,0.00025204,2]
[355185081,1740960635902,-500.0,0.00025204,2]
[355185082,1740960635912,-542.21,0.00025204,2]
[355185083,1740960635921,-500.0,0.00025204,2]
[355185084,1740960635933,-194.95,0.00025478,2]
[355185085,1740960635944,-500.0,0.00025478,2]
[355185086,1740960635954,-542.21,0.00025478,2]
[355185087,1740960635963,-500.0,0.00025478,2]
[355185088,1740960635972,-500.0,0.00025751,2]
[355185089,1740960635982,-500.0,0.00025752,2]
[355185090,1740960635992,-542.21,0.00025752,2]
[355185091,1740960636008,-522.06,0.00025752,2]
[355185092,1740960636018,-186.0,0.00025952,2]
[355185093,1740960636028,-500.0,0.00026025,2]
[355185094,1740960636037,-500.0,0.00026026,2]
[355185095,1740960636047,-542.21,0.00026026,2]
[355185096,1740960636057,-300.0,0.000261,12]
[355185097,1740960636067,-587.0,0.00026193,2]
[355185098,1740960636076,-500.0,0.00026299,2]
[355185099,1740960636085,-500.0,0.000263,2]
[355185100,1740960636095,-542.21,0.000263,2]
[355185101,1740960636104,-289.34,0.000264,7]
[355185102,1740960636114,-2279.0,0.00026444,2]
[355185103,1740960636123,-397.0,0.00026444,2]
[355185104,1740960636133,-500.0,0.00026532,2]
[355185105,1740960636142,-500.0,0.00026573,2]
[355185106,1740960636151,-500.0,0.00026574,2]
[355185107,1740960636161,-542.21,0.00026574,2]
[355185108,1740960636170,-150.0,0.0002674,2]
[355185109,1740960636180,-539.0,0.0002674,2]
[355185110,1740960636190,-1955.0,0.0002674,2]
[355185111,1740960636199,-500.0,0.00026847,2]
[355185112,1740960636209,-500.0,0.00026848,2]
[355185113,1740960636219,-542.21,0.00026848,2]
[355185114,1740960636228,-500.0,0.00027081,2]
[355185115,1740960636237,-500.0,0.00027121,2]
[355185116,1740960636248,-500.0,0.00027122,2]
[355185117,1740960636257,-542.21,0.00027122,2]
[355185118,1740960636268,-500.0,0.00027395,2]
[355185119,1740960636278,-345.67952962,0.00027396,2]
[355185120,1740960636287,-542.21,0.00027396,2]
[355185121,1740960636297,-300.0,0.000276,13]
[355185122,1740960636307,-500.0,0.00027669,2]
[355185123,1740960636316,-542.21,0.0002767,2]
[355185124,1740960636325,-199.4,0.00027943,2]
[355185125,1740960636335,-542.21,0.00027944,2]
[355185126,1740960636345,-160.0,0.00028,3]
[355185127,1740960636355,-160.0,0.00028,7]
[355185128,1740960636365,-542.21,0.00028218,2]
[355185129,1740960636375,-823.0,0.00028457,2]
[355185130,1740960636385,-542.21,0.00028492,2]
[355185131,1740960636394,-542.21,0.00028766,2]
[355185132,1740960636405,-542.21,0.0002904,2]
[355185133,1740960636414,-300.0,0.000291,14]
[355185134,1740960636424,-152.78,0.000293,31]
[355185135,1740960636436,-152.78,0.000293,31]
[355185136,1740960636446,-152.78,0.000293,31]
[355185137,1740960636456,-542.21,0.00029314,2]
[355185138,1740960636466,-2279.0,0.00029444,2]
[355185139,1740960636475,-397.0,0.00029444,2]
[355185140,1740960636485,-542.21,0.00029588,2]
[355185141,1740960636495,-150.0,0.0002974,2]
[355185142,1740960636506,-539.0,0.0002974,2]
[355185143,1740960636515,-1955.0,0.0002974,2]
[355185144,1740960636525,-289.34,0.000298,7]
[355185145,1740960636535,-542.21,0.00029862,2]
[355185146,1740960636544,-1000.0,0.00029908,5]
[355185147,1740960636554,-475.0,0.00029918,15]
[355185148,1740960636563,-542.22867662,0.00030136,2]
[355185149,1740960636573,-525.0,0.000306,15]
[355185150,1740960636585,-827.0,0.00030918,2]
[355185151,1740960636597,-168.23,0.00031261,2]
[355185152,1740960636607,-168.23,0.00031261,2]
[355185153,1740960636616,-168.23,0.00031261,2]
[355185154,1740960636626,-108634.59084465,0.00031271,2]
[355185210,1740960637927,-18840.0,0.00031271,2]
[355185221,1740960640724,-94525.40915535,0.00031271,2]
[355185222,1740960640735,-1016.96,0.00031369,2]
[355185223,1740960640747,-500.0,0.00031369,2]
[355185224,1740960640758,-500.0,0.00031369,2]
[355185225,1740960640769,-500.0,0.00031369,2]
[355185226,1740960640779,-432.7,0.00031369,2]
[355185227,1740960640789,-500.0,0.00031369,2]
[355185228,1740960640800,-583.87,0.00031369,2]
[355185229,1740960640810,-500.0,0.00031369,2]
[355185230,1740960640821,-500.0,0.00031369,2]
[355185231,1740960640832,-24900.0,0.00031371,2]
[355185232,1740960640843,-1016.96,0.00031643,2]
[355185233,1740960640854,-500.0,0.00031643,2]
[355185234,1740960640865,-500.0,0.00031643,2]
[355185235,1740960640875,-500.0,0.00031643,2]
[355185236,1740960640886,-486.76,0.00031643,2]
[355185237,1740960640896,-583.87,0.00031643,2]
[355185238,1740960640906,-500.0,0.00031643,2]
[355185239,1740960640916,-500.0,0.00031643,2]
[355185240,1740960640926,-1016.96,0.00031917,2]
[355185241,1740960640940,-500.0,0.00031917,2]
[355185242,1740960640950,-569.48,0.00031917,2]
[355185243,1740960640961,-551.77,0.00031917,2]
[355185244,1740960640971,-583.87,0.00031917,2]
[355185245,1740960640982,-500.0,0.00031917,2]
[355185246,1740960640991,-1000.0,0.00032011,5]
[355185247,1740960641001,-1016.96,0.00032191,2]
[355185248,1740960641011,-500.0,0.00032191,2]
[355185249,1740960641021,-583.87,0.00032191,2]
[355185250,1740960641030,-2279.0,0.00032444,2]
[355185251,1740960641041,-1016.96,0.00032465,2]
[355185252,1740960641050,-500.0,0.00032465,2]
[355185253,1740960641060,-583.87,0.00032465,2]
[355185254,1740960641069,-1000.0,0.00032561,5]
[355185255,1740960641079,-1016.96,0.00032739,2]
[355185256,1740960641089,-493.59,0.00032739,2]
[355185257,1740960641099,-583.87,0.00032739,2]
[355185258,1740960641109,-150.0,0.0003274,2]
[355185259,1740960641118,-538.0,0.0003274,2]
[355185260,1740960641128,-1955.0,0.0003274,2]
[355185261,1740960641137,-160.31972441,0.00032877,2]
[355185262,1740960641146,-500.0,0.00032877,2]
[355185263,1740960641156,-194.742186,0.00032877,2]
[355185264,1740960641166,-499.59,0.000329,30]
[355185265,1740960641175,-13025.57,0.000329,30]
[355185266,1740960641186,-757.28,0.000329,30]
[355185267,1740960641195,-426.5,0.000329,30]
[355185268,1740960641205,-1016.96,0.00033013,2]
[355185269,1740960641214,-583.87,0.00033013,2]
[355185270,1740960641224,-1016.96,0.00033287,2]
[355185271,1740960641234,-583.87,0.00033287,2]
[355185272,1740960641244,-201.19840754,0.00033428,11]
[355185273,1740960641254,-1016.96,0.00033561,2]
[355185274,1740960641263,-583.87,0.00033561,2]
[355185275,1740960641273,-1016.96,0.00033835,2]
[355185276,1740960641282,-583.87,0.00033835,2]
[355185277,1740960641292,-1016.96,0.00034109,2]
[355185278,1740960641302,-583.87,0.00034109,2]
[355185279,1740960641311,-1016.96,0.00034383,2]
[355185280,1740960641322,-583.87,0.00034383,2]
[355185281,1740960641331,-152.78,0.000344,31]
[355185282,1740960641341,-152.78,0.000344,31]
[355185283,1740960641351,-152.78,0.000344,31]
[355185284,1740960641360,-152.78,0.000344,31]
[355185285,1740960641370,-152.78,0.000344,31]
[355185286,1740960641381,-152.78,0.000344,31]
[355185287,1740960641391,-1016.96,0.00034657,2]
[355185288,1740960641402,-583.87,0.00034657,2]
[355185289,1740960641413,-1016.96,0.00034931,2]
[355185290,1740960641422,-583.87,0.00034931,2]
[355185291,1740960641434,-1016.96,0.00035205,2]
[355185292,1740960641443,-583.87,0.00035205,2]
[355185293,1740960641453,-1502.0,0.00035444,2]
[355185294,1740960641463,-1016.96,0.00035479,2]
[355185295,1740960641472,-583.87,0.00035479,2]
[355185296,1740960641483,-289.34,0.000355,7]
[355185297,1740960641492,-948.67,0.000357,7]
[355185298,1740960641503,-1491.537,0.0003574,2]
[355185299,1740960641513,-1016.96,0.00035753,2]
[355185300,1740960641523,-583.87,0.00035753,2]
[355185301,1740960641533,-2200.0,0.00035809,7]
[355185302,1740960641543,-500.0,0.0003589,2]
[355185303,1740960641553,-1016.96,0.00036027,2]
[355185304,1740960641563,-583.87,0.00036027,2]
[355185305,1740960641573,-170.58,0.000362,30]
[355185306,1740960641583,-1861.77484957,0.000362,98]
[355185307,1740960641593,-1861.77484955,0.000362,98]
[355185308,1740960641606,-1016.96,0.00036301,2]
[355185309,1740960641615,-583.87,0.00036301,2]
[355185310,1740960641625,-1016.96,0.00036575,2]
[355185311,1740960641634,-583.87,0.00036575,2]
[355185312,1740960641644,-1016.96,0.00036849,2]
[355185313,1740960641654,-583.87,0.00036849,2]
[355185314,1740960641663,-1016.96,0.00037123,2]
[355185315,1740960641674,-583.87,0.00037123,2]
[355185316,1740960641687,-1016.96,0.00037397,2]
[355185317,1740960641697,-583.87,0.00037397,2]
[355185318,1740960641706,-1017.10132947,0.00037671,2]
[355185319,1740960641715,-584.04000001,0.00037671,2]
[355185320,1740960641725,-164.987,0.00037971,50]
[355185321,1740960641734,-1000.0,0.00038,30]
[355185322,1740960641744,-499.59,0.000383,30]
[355185323,1740960641754,-1000.0,0.000385,30]
[355185324,1740960641764,-13025.57,0.000388,30]
[355185325,1740960641773,-757.28,0.000388,30]
[355185326,1740960641783,-500.0,0.00039371,5]
[355185327,1740960641793,-500.0,0.00039371,5]
[355185328,1740960641803,-500.0,0.00039371,5]
[355185329,1740960641813,-560.2690728,0.00039371,5]
[355185330,1740960641824,-500.0,0.00039371,5]
[355185331,1740960641834,-500.0,0.00039371,5]
[355185332,1740960641844,-500.0,0.00039371,5]
[355185333,1740960641854,-500.0,0.00039371,5]
[355185334,1740960641864,-152.78,0.000395,31]
[355185335,1740960641874,-152.78,0.000395,31]
[355185336,1740960641885,-152.78,0.000395,31]
[355185337,1740960641895,-152.78,0.000395,31]
[355185338,1740960641905,-152.78,0.000395,31]
[355185339,1740960641914,-152.78,0.000395,31]
[355185340,1740960641924,-1500.0,0.00039926,5]
[355185341,1740960641936,-426.5,0.000401,30]
[355185342,1740960641947,-170.58,0.000402,30]
[355185343,1740960641957,-3962.92,0.00041095,120]
[355185344,1740960641967,-500.0,0.00041211,2]
[355185345,1740960641977,-289.34,0.000413,30]
[355185346,1740960641986,-4816.37249874,0.00041507,30]
[355185347,1740960641997,-3962.92,0.0004178,120]
[355185348,1740960642007,-1500.0,0.0004203,10]
[355185349,1740960642016,-160.0,0.00042465,120]
[355185350,1740960642026,-3962.92,0.00042465,120]
[355185351,1740960642035,-1500.0,0.00042579,10]
[355185352,1740960642045,-3962.92,0.0004315,120]
[355185353,1740960642054,-499.59,0.000434,30]
[355185354,1740960642064,-1861.77484955,0.00043457,120]
[355185355,1740960642073,-3962.92,0.00043835,120]
[355185356,1740960642083,-194.742186,0.00043836,2]
[355185357,1740960642093,-500.0,0.00043836,31]
[355185358,1740960642103,-550.24471678,0.00043836,31]
[355185359,1740960642113,-13025.57,0.000439,30]
[355185360,1740960642123,-757.28,0.000439,30]
[355185361,1740960642133,-3962.92,0.0004452,120]
[355185362,1740960642143,-152.78,0.000446,36]
[355185363,1740960642152,-152.78,0.000446,36]
[355185364,1740960642162,-152.78,0.000446,36]
[355185365,1740960642172,-152.78,0.000446,36]
[355185366,1740960642183,-152.78,0.000446,36]
[355185367,1740960642193,-152.78,0.000446,36]
[355185368,1740960642203,-1000.0,0.00044851,10]
[355185369,1740960642213,-1000.0,0.00044851,10]
[355185370,1740960642222,-1000.0,0.00044851,10]
[355185371,1740960642232,-1000.0,0.00044851,10]
[355185372,1740960642242,-426.5,0.000449,30]
[355185373,1740960642251,-1000.0,0.00045,30]
[355185374,1740960642261,-3962.92,0.00045205,120]
[355185375,1740960642271,-1000.0,0.000455,30]
[355185376,1740960642281,-790.56,0.000456,14]
[355185377,1740960642290,-170.58,0.000456,30]
[355185378,1740960642300,-3962.92,0.0004589,120]
[355185379,1740960642310,-1000.0,0.0004595,30]
[355185380,1740960642320,-500.0,0.00046532,2]
[355185382,1740960642329,-3962.92,0.00046575,120]
[355185383,1740960642339,-1000.0,0.00047,30]
[355185384,1740960642350,-600.0,0.00047016,2]
[355185385,1740960642360,-500.0,0.00047016,30]
[355185386,1740960642370,-500.0,0.00047016,30]
[355185387,1740960642379,-500.0,0.00047016,30]
[355185388,1740960642389,-500.0,0.00047016,30]
[355185389,1740960642399,-500.0,0.00047016,30]
[355185390,1740960642409,-569.33633884,0.00047016,30]
[355185392,1740960642419,-3962.92,0.0004726,120]
[355185394,1740960642428,-600.0,0.00047506,2]
[355185396,1740960642442,-3962.92,0.00047945,120]
[355185398,1740960642452,-600.0,0.00047995,2]
[355185399,1740960642461,-800.0,0.00048164,120]
[355185400,1740960642471,-800.0,0.00048438,120]
[355185401,1740960642481,-600.0,0.00048485,2]
[355185402,1740960642491,-499.59,0.000485,30]
[355185403,1740960642502,-15030.26116539,0.00048581,2]
[355185404,1740960642512,-184747.73711857,0.00048581,120]
[355185405,1740960642522,-21209.54846298,0.00048581,30]
[355185406,1740960642532,-87333.59885649,0.00048581,20]
[355185407,1740960642542,-23820.83384662,0.00048581,8]
[355185442,1740960643242,-268.18401044,0.00048581,8]
[355185443,1740960643361,-27.82792474,0.00048581,8]
[355185474,1740960870036,-5000.0,0.00021383,2]
[355185475,1740960870072,-609.4725227,0.00021499,3]
[355185476,1740960870104,-1756.88835604,0.00021599,12]
[355185477,1740960870134,-4445.39834972,0.00021817,30]
[355185478,1740960870163,-500.0,0.00023241,2]
[355185479,1740960870196,-300.0,0.00023626,2]
[355185480,1740960870223,-500.0,0.00023834,2]
[355185481,1740960870250,-500.0,0.00023834,2]
[355185482,1740960870278,-500.0,0.00023834,2]
[355185483,1740960870306,-360.95982891,0.00023834,2]
[355185484,1740960870338,-500.0,0.00023834,2]
[355185485,1740960870368,-500.0,0.00023834,2]
[355185486,1740960870397,-500.0,0.00023834,2]
[355185487,1740960870425,-332.4450342,0.00023834,2]
[355185488,1740960870454,-500.1922893,0.00023834,2]
[355185489,1740960870481,-500.0,0.00023834,2]
[355185490,1740960870511,-500.0,0.00023834,2]
[355185491,1740960870537,-317.29192197,0.00023834,2]
[355185492,1740960870563,-500.0,0.00023834,2]
[355185493,1740960870587,-500.0,0.00023834,2]
[355185494,1740960870614,-500.0,0.00023834,2]
[355185495,1740960870640,-500.0,0.00023834,2]
[355185496,1740960870675,-500.0,0.00023834,2]
[355185497,1740960870710,-500.0,0.00023834,2]
[355185498,1740960870736,-500.0,0.00023834,2]
[355185499,1740960870766,-500.0,0.00023834,2]
[355185500,1740960870794,-504.44826958,0.00023834,2]
[355185501,1740960870827,-502.84402298,0.00023834,2]
[355185502,1740960870853,-500.0,0.00023834,2]
[355185503,1740960870877,-160.0,0.00024369,2]
[355185504,1740960870908,-7977.62125696,0.00024369,2]
[355185505,1740960870935,-160.0,0.00024369,2]
[355185506,1740960870966,-242.70120545,0.00024428,2]
[355185507,1740960870995,-165.29896746,0.00024557,2]
[355185508,1740960871024,-266.20684897,0.00024657,2]
[355185509,1740960871053,-436.53725164,0.00024657,2]
[355185510,1740960871082,-500.0,0.00024658,2]
[355185511,1740960871110,-500.0,0.00024658,2]
[355185512,1740960871139,-500.0,0.00024658,2]
[355185513,1740960871169,-500.0,0.00024658,2]
[355185514,1740960871195,-500.0,0.00024658,2]
[355185515,1740960871225,-500.0,0.00024658,2]
[355185516,1740960871251,-500.0,0.00024658,2]
[355185517,1740960871281,-500.0,0.00024658,2]
[355185518,1740960871312,-160.95772907,0.00024658,2]
[355185519,1740960871340,-500.0,0.00024658,2]
[355185520,1740960871366,-500.0,0.00024658,2]
[355185521,1740960871392,-500.0,0.00024658,2]
[355185522,1740960871419,-500.0,0.00024658,2]
[355185523,1740960871452,-500.0,0.00024658,2]
[355185524,1740960871481,-500.0,0.00024658,2]
[355185525,1740960871507,-500.0,0.00024658,2]
[355185526,1740960871533,-500.0,0.00024658,2]
[355185527,1740960871559,-500.0,0.00024658,2]
[355185528,1740960871591,-500.0,0.00024658,2]
[355185529,1740960871616,-500.0,0.00024658,2]
[355185530,1740960871641,-500.0,0.00024658,2]
[355185531,1740960871686,-500.0,0.00024658,2]
[355185532,1740960871724,-500.0,0.00024658,2]
[355185533,1740960871757,-500.0,0.00024658,2]
[355185534,1740960871791,-500.0,0.00024658,2]
[355185535,1740960871825,-500.0,0.00024658,2]
[355185536,1740960871854,-500.0,0.00024658,2]
[355185537,1740960871880,-439.63370493,0.00024658,2]
[355185538,1740960871903,-500.0,0.00024658,2]
[355185539,1740960871936,-500.0,0.00024658,2]
[355185540,1740960871958,-500.0,0.00024658,2]
[355185541,1740960871981,-500.0,0.00024658,2]
[355185542,1740960872003,-500.0,0.00024658,2]
[355185543,1740960872287,-500.0,0.00024658,2]
[355185544,1740960872311,-500.0,0.00024658,2]
[355185545,1740960872335,-500.0,0.00024658,2]
[355185546,1740960872359,-500.0,0.00024658,2]
[355185547,1740960872387,-150.0,0.000249,2]
[355185548,1740960872416,-420.0,0.00025631,2]
[355185549,1740960872440,-500.0,0.00025751,2]
[355185550,1740960872464,-500.0,0.00025751,2]
[355185551,1740960872489,-500.0,0.00025751,2]
[355185552,1740960872513,-529.5,0.00025751,2]
[355185553,1740960872537,-500.0,0.00025751,2]
[355185554,1740960872561,-500.0,0.00025751,2]
[355185555,1740960872586,-500.0,0.00025751,2]
[355185556,1740960872615,-500.0,0.00025751,2]
[355185557,1740960872639,-500.0,0.00025751,2]
[355185558,1740960872668,-500.0,0.00025751,2]
[355185559,1740960872695,-500.0,0.00025751,2]
[355185560,1740960872718,-327.67133116,0.00025751,2]
[355185561,1740960872741,-605.93,0.00025751,2]
[355185562,1740960872766,-500.0,0.00025751,2]
[355185563,1740960872789,-500.0,0.00025751,2]
[355185564,1740960872811,-500.0,0.00025751,2]
[355185565,1740960872840,-500.0,0.00025751,2]
[355185566,1740960872865,-500.0,0.00025751,2]
[355185567,1740960872888,-500.0,0.00025751,2]
[355185568,1740960872913,-500.0,0.00025751,2]
[355185569,1740960872937,-500.0,0.00025751,2]
[355185570,1740960872960,-500.0,0.00025751,2]
[355185571,1740960872985,-500.0,0.00025751,2]
[355185572,1740960873015,-500.0,0.00025751,2]
[355185573,1740960873040,-500.0,0.00025751,2]
[355185574,1740960873067,-500.0,0.00025751,2]
[355185575,1740960873093,-580.8,0.00025751,2]
[355185576,1740960873120,-500.0,0.00025751,2]
[355185577,1740960873148,-500.0,0.00025751,2]
[355185578,1740960873176,-500.0,0.00025751,2]
[355185579,1740960873209,-500.0,0.00025751,2]
[355185580,1740960873233,-500.0,0.00025751,2]
[355185581,1740960873257,-500.0,0.00025751,2]
[355185582,1740960873281,-500.0,0.00025751,2]
[355185583,1740960873305,-500.0,0.00025751,2]
[355185584,1740960873334,-500.0,0.00025751,2]
[355185585,1740960873356,-500.0,0.00025751,2]
[355185586,1740960873381,-500.0,0.00025751,2]
[355185587,1740960873406,-500.0,0.00025751,2]
[355185588,1740960873429,-500.0,0.00025751,2]
[355185589,1740960873453,-500.0,0.00025751,2]
[355185590,1740960873482,-500.0,0.00025751,2]
[355185591,1740960873504,-500.0,0.00025751,2]
[355185592,1740960873528,-566.35,0.00025751,2]
[355185593,1740960873552,-500.0,0.00025751,2]
[355185594,1740960873576,-500.0,0.00025751,2]
[355185595,1740960873600,-500.0,0.00025751,2]
[355185596,1740960873622,-500.0,0.00025829,2]
[355185597,1740960873650,-3243.34376751,0.000259,4]
[355185598,1740960873763,347.41896602,0.00025751,2]
[355185599,1740960874205,500.0,0.00025751,2]
[355185600,1740960876830,500.0,0.00025751,2]
[355185601,1740960879152,5000.0,0.00026,2]
[355185602,1740960879915,1188.58,0.00025751,2]
[355185603,1740960880991,500.0,0.00023834,2]
[355185604,1740960881487,475.9621907,0.00025751,2]
[355185605,1740960881538,202.73144664,0.0002575,2]
[355185606,1740960881586,286.97665802,0.0002575,2]
[355185607,1740960882791,184.55085879,0.00024658,2]
[355185608,1740960882822,500.0,0.00024658,2]
[355185609,1740960882858,500.0,0.00024658,2]
[355185610,1740960882883,500.0,0.00023834,2]
[355185611,1740960882915,271.07041166,0.00024658,2]
[355185612,1740960883637,514.46,0.00025751,2]
[355185613,1740960885869,500.0,0.00025751,2]
[355185614,1740960886283,500.0,0.00023834,2]
[355185615,1740960892279,500.0,0.00025751,2]
[355185616,1740960895431,4163.22182725,0.00026,2]
[355185617,1740960983526,-160.0,0.0002,3]